bitfinex-derivatives/quotes_ETHF0:USTF0_20250102
["timestamp","ask_amount","ask_price","bid_price","bid_amount"]
[1735832971825,3.2078,3470.5,3469.9,4.52902789]
[1735832972021,3.2078,3470.5,3470.4,0.28842]
[1735832972720,0.2884,3470.7,3470.5,0.28841]
[1735832972916,2.26560202,3470.8,3470.6,0.2884]
[1735832973121,2.26560202,3470.8,3470.7,0.2884]
[1735832973322,2.26560202,3470.8,3470.7,0.839]
[1735832974218,2.26560202,3471.0,3470.7,0.5506]
[1735832974423,2.55398202,3471.0,3470.8,0.28838]
[1735832974627,2.26560202,3471.0,3470.8,0.28839]
[1735832975018,2.55397202,3471.0,3470.8,0.28839]
[1735832975219,2.26560202,3471.0,3470.7,0.5506]
[1735832975524,2.26560202,3471.3,3470.7,0.5506]
[1735832976026,0.28838,3471.0,3470.7,0.28839]
[1735832976219,2.55395202,3471.3,3470.6,2.04461875]
[1735832976424,2.26560202,3471.3,3471.2,0.28835]
[1735832977020,0.28838,3470.9,3470.7,0.28839]
[1735832977223,1.35675,3471.2,3471.0,0.28837]
[1735832977722,1.0684,3471.2,3470.5,8.24852789]
[1735832977919,0.28837,3471.1,3470.9,0.28838]
[1735832978218,0.28838,3470.9,3470.5,8.24852789]
[1735832978421,0.28837,3471.0,3470.8,0.28838]
[1735832978625,1.0684,3471.2,3470.8,0.28838]
[1735832978822,1.0684,3471.2,3470.5,3.7195]
[1735832979024,2.04461875,3470.8,3470.5,0.5117]
[1735832979223,0.28841,3470.5,3470.4,4.52902789]
[1735832979420,3.2078,3470.7,3470.1,7.73682789]
[1735832979817,5.25241875,3471.1,3470.1,7.73682789]
[1735832980025,0.28838,3470.9,3470.6,0.2884]
[1735832980226,5.25241875,3471.1,3470.9,0.28838]
[1735832980227,3.2078,3471.1,3470.9,0.28838]
[1735832980524,3.2078,3471.1,3470.5,2.04461875]
[1735832980525,5.47340202,3471.1,3471.0,0.28837]
[1735832980729,2.26560202,3471.1,3471.0,0.28837]
[1735832981428,2.26560202,3471.1,3471.0,0.84387]
[1735832982129,0.28833,3471.5,3471.4,0.28833]
[1735832983031,1.37402,3471.6,3471.4,0.28833]
[1735832983226,1.0857,3471.6,3471.0,0.5555]
[1735832983428,3.2078,3471.9,3471.8,0.2883]
[1735832983629,3.2078,3471.9,3471.4,2.04461875]
[1735832983830,3.2078,3471.9,3471.8,0.2883]
[1735832984726,2.26560202,3472.2,3471.5,1.0574]
[1735832984727,2.26560202,3472.2,3472.1,0.28828]
[1735832984927,0.2883,3471.9,3471.7,0.28831]
[1735832985131,0.2883,3471.8,3471.6,0.28832]
[1735832985331,3.2078,3472.0,3471.3,3.2078]
[1735832985931,0.28831,3471.7,3471.6,0.28832]
[1735832986128,3.2078,3472.0,3471.3,3.2078]
[1735832986434,0.28832,3471.6,3471.5,0.28833]
[1735832986630,3.2078,3472.0,3471.3,3.2078]
[1735832986836,0.28832,3471.6,3471.5,0.28833]
[1735832987036,3.2078,3472.0,3471.3,3.2078]
[1735832987533,3.2078,3472.0,3471.2,2.04461875]
[1735832987738,0.28836,3471.5,3471.3,0.28837]
[1735832988034,0.72082,3471.9,3471.1,1.0574]
[1735832988331,2.76543875,3471.9,3471.1,1.0574]
[1735832988639,5.25241875,3471.6,3470.8,3.2078]
[1735832988937,0.28839,3471.1,3471.0,0.2884]
[1735832989138,3.2078,3471.2,3470.6,2.57481875]
[1735832989336,0.5252,3471.1,3470.4,7.73682789]
[1735832989533,0.72101,3471.0,3470.4,7.73682789]
[1735832989731,0.28844,3470.6,3470.5,0.28844]
[1735832990036,0.28844,3470.5,3470.4,3.2078]
[1735832990237,0.72107,3470.7,3470.0,2.04461875]
[1735832990430,0.28848,3470.1,3470.0,0.28848]
[1735832990732,3.2078,3470.4,3470.0,2.04461875]
[1735832990937,0.28844,3470.5,3470.4,0.28844]
[1735832991237,0.28843,3470.6,3470.5,0.28843]
[1735832991431,0.5202,3470.8,3470.0,5.25241875]
[1735832991735,0.28843,3470.6,3470.5,0.28843]
[1735832991927,0.80862,3470.8,3470.4,0.28845]
[1735832992130,0.80862,3470.8,3470.7,0.28842]
[1735832992331,3.2078,3470.9,3470.6,2.04461875]
[1735832992531,3.2078,3470.9,3470.8,0.28842]
[1735832993029,3.2078,3470.9,3470.7,1.6481]
[1735832993332,3.2078,3470.9,3470.3,5.25241875]
[1735832993535,3.2078,3470.9,3470.8,0.28842]
[1735832993729,0.28842,3470.8,3470.7,0.28842]
[1735832993929,3.2078,3470.9,3470.8,0.28842]
[1735832994329,3.2078,3470.9,3470.6,2.04461875]
[1735832994531,3.2078,3470.9,3470.4,1.6077]
[1735832994737,3.2078,3470.9,3470.4,1.36924]
[1735832994738,0.28843,3470.6,3470.4,1.36924]
[1735832994931,3.2078,3470.9,3470.4,1.0808]
[1735832995134,0.28844,3470.5,3470.4,1.36925]
[1735832995326,0.28844,3470.6,3470.5,0.28844]
[1735832995526,0.28844,3470.5,3470.4,1.0808]
[1735832995731,0.5677,3470.8,3470.0,2.56111875]
[1735832995929,0.28845,3470.4,3470.3,0.28845]
[1735832996239,0.28847,3470.2,3470.1,0.28847]
[1735832996538,0.5677,3470.8,3470.0,2.56111875]
[1735832996839,3.2078,3470.5,3470.0,2.56111875]
[1735832997039,0.28847,3470.2,3470.1,0.28847]
[1735832997537,3.49625,3470.5,3470.0,2.56111875]
[1735832997737,0.28845,3470.5,3470.4,0.28845]
[1735832999040,0.28844,3470.5,3470.4,0.28844]
[1735832999239,0.28845,3470.4,3470.3,0.28845]
[1735832999535,0.559,3470.6,3470.0,2.56111875]
[1735832999740,0.28846,3470.3,3470.2,0.28846]
[1735832999935,0.28845,3470.4,3470.3,0.28845]
[1735833000234,0.28847,3470.2,3470.1,0.28847]
[1735833000443,0.28851,3469.8,3469.7,0.2885]
[1735833000941,3.2078,3470.5,3469.7,2.04461875]
[1735833001238,0.28847,3470.2,3470.1,0.28847]
[1735833001943,0.28849,3470.0,3469.9,0.28848]
[1735833002243,0.2885,3469.9,3469.8,0.28849]
[1735833002639,0.2885,3469.8,3469.7,0.28849]
[1735833003145,0.28852,3469.6,3469.5,3.2078]
[1735833003938,0.28852,3469.5,3469.4,0.28853]
[1735833004142,0.5369,3469.7,3469.4,2.04461875]
[1735833004336,3.2078,3470.0,3469.4,2.04461875]
[1735833004538,0.2885,3469.9,3469.8,0.28848]
[1735833004741,0.2885,3469.9,3469.8,1.0681]
[1735833005038,3.2078,3470.0,3469.6,0.28851]
[1735833005233,0.28852,3469.5,3469.4,2.33313875]
[1735833005437,0.28854,3469.3,3469.2,4.2604]
[1735833005650,0.5132,3469.8,3469.2,4.2604]
[1735833005835,0.28853,3469.5,3469.4,0.28852]
[1735833006145,0.28854,3469.4,3469.3,0.28854]
[1735833006944,0.28854,3469.3,3469.2,0.28854]
[1735833007339,0.28852,3469.5,3469.4,0.28852]
[1735833007544,0.28855,3469.3,3469.2,0.28854]
[1735833007748,0.28856,3469.1,3469.0,0.28855]
[1735833007944,0.28857,3469.0,3468.9,0.28857]
[1735833008145,0.28857,3469.0,3468.8,10.85284664]
[1735833008146,0.72137,3469.3,3468.8,8.80822789]
[1735833008336,0.72137,3469.3,3468.8,4.52902789]
[1735833008337,0.28857,3468.9,3468.8,4.52902789]
[1735833009041,0.28857,3468.9,3468.8,4.81760789]
[1735833009445,0.28857,3468.9,3468.8,0.28858]
[1735833009943,0.28859,3468.8,3468.7,0.28859]
[1735833010146,0.28858,3468.9,3468.8,0.28858]
[1735833010446,0.28858,3468.8,3468.7,0.28859]
[1735833010849,0.28859,3468.7,3468.6,0.83429]
[1735833011048,0.28861,3468.5,3468.4,3.49641]
[1735833011244,3.2078,3468.6,3468.2,6.57364664]
[1735833011447,0.28862,3468.3,3468.2,4.52902789]
[1735833011742,0.28864,3468.1,3468.0,4.52902789]
[1735833011947,5.54105875,3468.1,3468.0,4.52902789]
[1735833012250,10.54105875,3468.1,3468.0,4.52902789]
[1735833012546,10.54105875,3468.1,3468.0,0.72171789]
[1735833012848,10.54105875,3468.1,3468.0,0.68751789]
[1735833013245,10.54105875,3468.1,3466.6,2.04461875]
[1735833013246,10.25241875,3468.1,3466.6,2.04461875]
[1735833013446,0.28872,3467.2,3466.8,0.28874]
[1735833013646,3.2078,3467.6,3466.6,2.04461875]
[1735833013846,3.49649,3467.6,3467.2,0.28871]
[1735833014043,0.28867,3467.7,3467.4,0.2887]
[1735833014344,3.2078,3468.0,3467.5,0.4951]
[1735833014541,0.28868,3467.6,3467.5,0.4951]
[1735833014743,3.2078,3468.0,3467.5,0.4951]
[1735833014943,3.2078,3468.0,3467.6,0.28868]
[1735833015243,3.2078,3468.0,3467.5,0.4951]
[1735833015642,0.28866,3467.9,3467.5,0.78378]
[1735833016044,3.2078,3468.0,3467.9,0.28866]
[1735833016349,3.2078,3468.5,3467.6,0.5204]
[1735833016541,2.04461875,3468.4,3467.6,0.5204]
[1735833016746,0.28866,3468.0,3467.6,0.80908]
[1735833016942,0.28866,3467.9,3467.6,0.5204]
[1735833017149,3.2078,3468.1,3467.6,0.5204]
[1735833017344,0.28868,3467.6,3467.5,0.4951]
[1735833017847,0.28867,3467.8,3467.5,0.4951]
[1735833018044,5.25241875,3468.1,3467.5,0.4951]
[1735833018250,0.28866,3467.9,3467.5,0.78378]
[1735833018557,3.2078,3468.1,3467.5,0.78379]
[1735833019054,0.28867,3467.8,3467.5,0.78379]
[1735833019351,3.2078,3468.1,3467.5,0.4951]
[1735833019550,0.28866,3467.9,3467.6,0.28868]
[1735833019951,3.2078,3468.1,3467.5,0.4951]
[1735833020153,3.2078,3468.1,3467.6,0.28868]
[1735833020455,0.28866,3467.9,3467.6,0.28868]
[1735833021153,0.28865,3468.0,3467.5,0.78379]
[1735833021451,0.28866,3467.9,3467.5,0.4951]
[1735833021854,5.25241875,3468.1,3467.5,0.4951]
[1735833022053,0.28868,3467.6,3467.5,0.4951]
[1735833023356,0.28868,3467.6,3467.3,0.5216]
[1735833023357,3.2078,3467.7,3467.0,0.28872]
[1735833023548,3.2078,3467.7,3467.0,0.5329]
[1735833023750,0.28868,3467.7,3467.5,0.28869]
[1735833024055,0.28866,3467.9,3467.6,0.28868]
[1735833024352,0.28867,3467.8,3467.7,0.5329]
[1735833024949,0.28866,3467.9,3467.7,0.5329]
[1735833025257,3.2078,3468.1,3467.7,0.5329]
[1735833025950,0.28865,3468.0,3467.8,0.81736]
[1735833026156,0.28865,3468.0,3467.8,0.5287]
[1735833026750,3.2078,3468.1,3468.0,0.28865]
[1735833027159,0.2886,3468.7,3468.4,0.28861]
[1735833027457,0.2886,3468.6,3468.5,0.4886]
[1735833028452,0.72151,3468.6,3467.9,0.5134]
[1735833028653,2.04461875,3468.0,3467.4,0.28869]
[1735833028956,0.28866,3467.9,3467.5,0.5049]
[1735833029157,0.28868,3467.6,3467.5,0.5049]
[1735833030747,3.2078,3468.1,3467.5,0.5049]
[1735833030951,0.28866,3467.9,3467.7,0.28867]
[1735833031351,0.28865,3468.0,3467.8,0.28867]
[1735833031752,3.2078,3468.1,3467.5,0.5049]
[1735833031953,0.28865,3468.0,3467.8,0.28867]
[1735833032161,3.2078,3468.1,3467.5,0.5049]
[1735833032455,0.28866,3467.9,3467.7,0.28867]
[1735833032852,3.2078,3468.1,3467.7,0.28867]
[1735833033057,0.28867,3467.8,3467.6,0.28868]
[1735833033260,3.2078,3468.1,3467.5,0.5049]
[1735833033862,0.28867,3467.7,3467.6,0.28867]
[1735833034064,0.28867,3467.8,3467.6,0.28868]
[1735833034359,0.28865,3468.0,3467.8,0.28866]
[1735833034658,3.2078,3468.1,3467.5,2.54951875]
[1735833035159,3.2078,3468.5,3467.8,2.04461875]
[1735833035462,3.2078,3468.5,3468.4,0.28862]
[1735833035666,0.28857,3469.0,3468.8,0.28858]
[1735833035955,2.26560202,3469.1,3468.5,4.2251]
[1735833036161,0.28857,3469.0,3468.8,0.28858]
[1735833036351,2.26560202,3469.1,3469.0,0.28857]
[1735833036552,3.2078,3469.3,3468.7,2.04461875]
[1735833036753,3.2078,3469.3,3468.9,0.28857]
[1735833036754,0.28856,3469.1,3468.9,0.28857]
[1735833037465,0.28857,3468.9,3468.8,0.5054]
[1735833037962,0.28857,3468.9,3468.5,1.0173]
[1735833037963,0.2886,3468.6,3468.5,1.0173]
[1735833038160,0.28866,3467.9,3467.7,3.2078]
[1735833038363,3.92932,3468.5,3467.8,0.9891]
[1735833038568,3.92932,3468.5,3467.8,3.03371875]
[1735833038569,3.2078,3468.5,3467.8,3.03371875]
[1735833038862,3.92933,3468.5,3467.8,3.03371875]
[1735833039061,3.92933,3468.5,3468.0,0.28864]
[1735833039062,0.28863,3468.2,3468.0,0.28864]
[1735833039255,3.2078,3468.5,3467.8,0.9891]
[1735833039465,0.28866,3467.9,3467.8,0.9891]
[1735833039763,0.28866,3467.9,3467.8,0.501]
[1735833040360,0.2887,3467.5,3467.3,0.81131]
[1735833040556,0.2887,3467.5,3467.3,1.32491]
[1735833041152,0.28869,3467.6,3467.4,0.28869]
[1735833041669,0.28869,3467.6,3467.3,1.0362]
[1735833041868,0.28867,3467.8,3467.6,0.28867]
[1735833042058,3.2078,3467.9,3467.3,1.0362]
[1735833042059,0.2887,3467.4,3467.3,1.0362]
[1735833042570,3.2078,3467.9,3467.6,0.28868]
[1735833042868,0.28868,3467.7,3467.3,1.0362]
[1735833043058,0.28868,3467.6,3467.4,0.28869]
[1735833043374,0.28868,3467.6,3467.5,0.28869]
[1735833043865,0.2887,3467.4,3467.3,1.3249]
[1735833044863,3.92946,3467.9,3467.3,1.3249]
[1735833045068,0.28869,3467.6,3467.5,0.28868]
[1735833045265,0.2887,3467.5,3467.4,0.28869]
[1735833045570,0.28869,3467.6,3467.5,0.28868]
[1735833046068,0.28869,3467.5,3467.4,0.28869]
[1735833046460,0.28869,3467.5,3467.4,0.2887]
[1735833047561,0.72164,3468.0,3467.5,0.28868]
[1735833047562,0.28869,3467.6,3467.5,0.28868]
[1735833048467,0.2887,3467.4,3467.3,1.3249]
[1735833048866,0.28869,3467.5,3467.4,0.28869]
[1735833049170,0.2887,3467.4,3467.3,1.0362]
[1735833049569,0.2887,3467.4,3467.3,0.5136]
[1735833049965,0.28872,3467.2,3467.1,3.2078]
[1735833050161,0.28875,3466.8,3466.7,3.49655]
[1735833050366,0.28875,3466.9,3466.8,0.28874]
[1735833050564,0.28874,3467.0,3466.9,0.28874]
[1735833050772,0.28873,3467.0,3466.9,0.28874]
[1735833051067,3.2078,3467.5,3466.9,2.04461875]
[1735833051371,0.72171,3467.7,3466.9,2.04461875]
[1735833051372,2.26560202,3467.6,3466.9,2.04461875]
[1735833051565,0.28871,3467.3,3467.2,0.28871]
[1735833052271,0.28872,3467.2,3467.1,0.28872]
[1735833052469,0.72175,3467.4,3466.7,3.2078]
[1735833052675,0.28875,3466.8,3466.7,3.2078]
[1735833053476,0.28876,3466.7,3466.6,0.5012]
[1735833053774,0.28875,3466.8,3466.7,0.28875]
[1735833054363,3.2078,3467.0,3466.6,1.0009]
[1735833054563,0.28876,3466.7,3466.6,1.0009]
[1735833055078,0.28874,3466.9,3466.8,0.28874]
[1735833055271,2.26560202,3467.2,3467.1,0.28872]
[1735833055975,2.26560202,3467.6,3467.1,0.4927]
[1735833056172,0.2887,3467.5,3467.4,0.28869]
[1735833056473,2.26560202,3467.6,3467.2,0.5261]
[1735833056772,2.26560202,3467.6,3467.5,0.28869]
[1735833056972,3.38054981,3467.7,3467.4,3.2078]
[1735833057169,1.66454981,3467.8,3467.7,0.28867]
[1735833058577,0.28864,3468.1,3467.7,4.25605877]
[1735833058876,3.6896,3468.6,3467.7,4.25605877]
[1735833059370,0.28864,3468.2,3468.1,0.28863]
[1735833060173,0.4818,3468.6,3467.8,7.94515877]
[1735833060371,5.73421875,3468.6,3467.8,4.73735877]
[1735833060574,0.28866,3467.9,3467.8,4.25605877]
[1735833061270,3.2078,3468.2,3467.8,4.25605877]
[1735833061573,0.28866,3468.0,3467.8,0.28866]
[1735833061771,0.28862,3468.3,3468.1,0.28863]
[1735833061970,4.80454814,3468.4,3468.2,0.28863]
[1735833062173,4.51592814,3468.4,3468.3,0.28862]
[1735833062374,0.28863,3468.3,3468.1,0.28864]
[1735833062669,0.28863,3468.3,3468.0,0.4813]
[1735833062876,0.28862,3468.4,3468.2,0.28863]
[1735833063284,0.28863,3468.3,3468.1,0.28864]
[1735833063571,0.28864,3468.2,3468.0,0.76994]
[1735833064083,3.2078,3468.5,3467.8,6.71784941]
[1735833064382,1.72215,3468.4,3467.8,6.71784941]
[1735833064578,0.28866,3467.9,3467.8,7.00650941]
[1735833064980,0.28866,3467.9,3467.8,6.71784941]
[1735833065182,0.28866,3467.9,3467.8,7.00651941]
[1735833065376,0.28866,3467.9,3467.6,10.98912135]
[1735833065377,1.72215,3468.4,3467.6,2.04461875]
[1735833065687,0.28869,3467.6,3467.5,0.28868]
[1735833065879,3.2078,3468.1,3467.4,6.71784941]
[1735833066081,3.2078,3468.1,3467.8,0.28866]
[1735833066379,0.28865,3468.0,3467.9,0.28865]
[1735833066574,0.28866,3467.9,3467.8,0.28866]
[1735833067272,1.0006,3468.4,3467.3,13.21792816]
[1735833067273,3.2078,3468.1,3467.3,13.21792816]
[1735833067578,0.28864,3468.2,3468.0,0.28864]
[1735833067875,0.28864,3468.1,3467.9,0.28865]
[1735833068076,1.0006,3468.4,3467.3,12.49616816]
[1735833068276,1.72215,3468.4,3467.7,0.28867]
[1735833068479,0.28866,3467.9,3467.7,0.28867]
[1735833068777,1.72215,3468.4,3467.7,0.28867]
[1735833068977,0.28867,3467.8,3467.7,0.28867]
[1735833069377,0.28866,3467.9,3467.8,0.28866]
[1735833069571,2.04461875,3468.3,3467.3,12.49616816]
[1735833069774,0.28867,3467.8,3467.3,10.45154941]
[1735833070075,1.72215,3468.4,3467.3,12.49616816]
[1735833070277,0.28865,3468.0,3467.5,1.01042]
[1735833070577,0.28867,3467.8,3467.7,0.28867]
[1735833070879,1.0006,3468.4,3467.4,4.25541808]
[1735833071079,0.28866,3467.9,3467.8,0.28866]
[1735833071376,2.04461875,3467.9,3467.4,4.25541808]
[1735833071577,0.28869,3467.5,3467.4,4.25541808]
[1735833071783,2.04461875,3467.6,3467.3,9.92564941]
[1735833072079,0.2887,3467.4,3467.3,9.92564941]
[1735833072476,0.2887,3467.4,3467.3,6.71784941]
[1735833073193,2.04461875,3467.6,3466.7,7.21644941]
[1735833073480,0.28875,3466.8,3466.7,6.71784941]
[1735833073680,3.2078,3467.1,3466.7,6.71784941]
[1735833073877,3.2078,3467.1,3467.0,0.28873]
[1735833074178,4.5298,3467.5,3466.7,6.71784941]
[1735833074679,0.28875,3466.9,3466.7,0.28875]
[1735833074875,2.04461875,3467.3,3466.5,3.2078]
[1735833075279,0.28875,3466.8,3466.6,0.28876]
[1735833075582,0.28877,3466.6,3466.5,3.2078]
[1735833075782,0.28878,3466.4,3466.3,6.71784941]
[1735833076579,0.2888,3466.2,3466.1,7.21634941]
[1735833076784,0.2888,3466.2,3466.1,6.71784941]
[1735833078278,0.2888,3466.2,3465.4,0.4827]
[1735833078279,0.28886,3465.5,3465.4,7.20054941]
[1735833078783,3.2078,3465.9,3465.5,0.28885]
[1735833078784,0.28883,3465.8,3465.5,0.28885]
[1735833078980,0.5096,3466.4,3465.8,0.28883]
[1735833079183,3.2078,3466.5,3466.1,0.2888]
[1735833079385,1.322,3466.6,3465.8,2.04461875]
[1735833079596,0.5073,3466.8,3466.3,0.28879]
[1735833079785,9.76834689,3466.9,3466.4,0.4827]
[1735833080079,4.51592814,3466.7,3466.4,0.4827]
[1735833080281,4.51592814,3466.7,3465.9,0.9844]
[1735833080282,2.04461875,3466.6,3465.9,0.9844]
[1735833080478,3.2078,3466.5,3466.0,0.5134]
[1735833080678,2.04461875,3466.3,3465.6,3.49665]
[1735833080983,0.28882,3466.0,3465.3,1.0074]
[1735833081182,0.28882,3466.0,3465.7,0.28884]
[1735833081380,3.2078,3466.1,3465.3,1.0074]
[1735833081884,3.49661,3466.1,3465.8,0.28883]
[1735833082085,3.2078,3466.1,3465.5,3.2078]
[1735833082581,0.28882,3466.0,3465.7,0.28884]
[1735833082782,0.28882,3466.0,3465.6,0.28885]
[1735833083082,0.28882,3466.0,3465.5,3.2078]
[1735833083083,3.7194,3466.5,3465.5,3.2078]
[1735833083280,3.2078,3466.5,3466.4,0.28878]
[1735833083486,0.28875,3466.8,3466.4,0.28878]
[1735833083780,0.28877,3466.6,3466.3,0.28878]
[1735833084080,2.97026691,3466.9,3466.6,0.28876]
[1735833084081,0.28874,3466.9,3466.6,0.28876]
[1735833084387,3.49654,3467.0,3466.7,1.27475]
[1735833084575,0.28875,3466.8,3466.7,0.986]
[1735833085184,3.2078,3467.0,3466.3,3.2078]
[1735833085383,0.5241,3467.2,3466.0,0.5165]
[1735833085384,3.2078,3466.6,3466.1,1.0109]
[1735833085588,0.28878,3466.5,3466.2,0.2888]
[1735833085891,0.28879,3466.4,3466.1,1.0109]
[1735833086185,3.2078,3466.6,3466.1,1.0109]
[1735833086387,3.2078,3466.6,3466.4,0.28878]
[1735833086581,3.2078,3466.6,3466.5,0.28877]
[1735833088491,3.49657,3466.6,3466.5,0.28877]
[1735833088691,3.2078,3466.6,3466.5,0.28877]
[1735833089286,0.4913,3467.7,3466.6,0.72192]
[1735833089488,7.72372814,3467.8,3466.6,0.72192]
[1735833089489,4.51592814,3467.8,3467.7,0.28867]
[1735833089995,2.11532814,3467.8,3467.7,0.28867]
[1735833090394,0.28863,3468.2,3467.6,3.45946691]
[1735833090590,3.2078,3468.6,3467.6,3.45946691]
[1735833090894,0.28862,3468.4,3468.3,0.28862]
[1735833091289,3.2078,3468.6,3468.4,0.28861]
[1735833091593,3.4964,3468.6,3468.5,0.28861]
[1735833091795,3.2078,3468.6,3468.5,0.28861]
[1735833092292,3.7088,3469.1,3468.4,2.44946691]
[1735833092484,0.2886,3468.7,3468.4,0.28861]
[1735833092686,0.2886,3468.6,3468.4,0.28861]
[1735833093191,0.2886,3468.6,3468.3,3.2078]
[1735833093192,0.28861,3468.5,3468.3,3.2078]
[1735833093394,0.28862,3468.4,3468.3,3.2078]
[1735833093794,0.28861,3468.5,3468.3,3.2078]
[1735833094002,3.7088,3469.1,3468.3,3.2078]
[1735833094496,0.2886,3468.6,3468.3,3.49642]
[1735833094794,0.28858,3468.8,3468.5,0.28861]
[1735833094992,3.7088,3469.1,3468.4,0.491]
[1735833095199,0.28859,3468.8,3468.5,0.2886]
[1735833095492,0.28859,3468.8,3467.9,3.6917]
[1735833095493,0.28863,3468.2,3467.9,3.6917]
[1735833095694,0.28865,3468.0,3467.9,3.2078]
[1735833095888,3.2078,3468.2,3467.7,0.491]
[1735833096085,0.28867,3467.8,3467.7,0.491]
[1735833096292,0.28867,3467.7,3467.6,6.71784941]
[1735833096491,0.28866,3467.9,3467.6,7.00652941]
[1735833096691,0.28867,3467.8,3467.6,6.71784941]
[1735833096892,0.5277,3468.1,3467.6,6.71784941]
[1735833097103,0.28867,3467.8,3467.6,6.71784941]
[1735833097300,0.28866,3467.9,3467.6,7.00652941]
[1735833097500,0.28867,3467.8,3467.6,6.71784941]
[1735833097695,0.5277,3468.1,3467.3,12.1523026]
[1735833097696,0.28868,3467.6,3467.3,3.4965]
[1735833098095,0.5277,3468.1,3467.3,3.2078]
[1735833098302,0.2887,3467.4,3467.3,3.2078]
[1735833098499,3.2078,3467.7,3467.0,0.491]
[1735833098807,0.4836,3467.6,3466.9,3.2078]
[1735833099002,0.5277,3468.1,3467.3,3.2078]
[1735833099305,0.81634,3468.1,3467.9,0.28866]
[1735833099599,0.5277,3468.1,3467.3,3.2078]
[1735833099796,0.28866,3467.9,3467.7,0.28867]
[1735833100106,0.28866,3467.9,3467.3,3.2078]
[1735833100107,0.28865,3468.1,3467.8,0.28866]
[1735833100399,0.28864,3468.1,3467.6,2.44946691]
[1735833100602,0.28865,3468.0,3467.8,0.28866]
[1735833100999,3.2078,3468.3,3467.7,0.5191]
[1735833101700,0.28865,3468.0,3467.8,0.28866]
[1735833102204,0.5287,3468.4,3467.7,0.5191]
[1735833102511,3.2078,3468.3,3467.4,0.4649]
[1735833102701,0.28866,3467.9,3467.7,0.28867]
[1735833103011,0.28867,3467.8,3467.7,0.28867]
[1735833103211,0.28866,3467.9,3467.7,0.28867]
[1735833103521,0.28867,3467.7,3467.5,0.28869]
[1735833103810,0.28868,3467.7,3467.5,0.28869]
[1735833104013,0.28868,3467.7,3467.4,0.4649]
[1735833104014,0.28867,3467.8,3467.6,0.28868]
[1735833104317,3.2078,3468.3,3467.4,0.4649]
[1735833104510,0.28867,3467.8,3467.5,0.28869]
[1735833105418,0.28868,3467.7,3467.5,0.28869]
[1735833106316,0.2887,3467.4,3467.3,0.8179]
[1735833106619,3.2078,3468.0,3467.4,0.28869]
[1735833106620,0.28869,3467.6,3467.4,0.28869]
[1735833106818,0.28869,3467.6,3467.5,0.28869]
[1735833107014,3.2078,3468.0,3467.5,0.28869]
[1735833107214,3.2078,3468.0,3467.7,0.28867]
[1735833107417,3.2078,3468.0,3467.3,0.5292]
[1735833107620,3.92945,3468.0,3467.3,0.5292]
[1735833107817,3.92945,3468.0,3467.1,3.2078]
[1735833107818,0.28872,3467.2,3467.1,3.2078]
[1735833108411,3.2078,3467.2,3466.7,0.28875]
[1735833108626,0.28875,3466.9,3466.7,0.28875]
[1735833109028,0.9631,3467.1,3466.5,6.71784941]
[1735833109323,0.28877,3466.6,3466.5,6.71784941]
[1735833109718,0.28877,3466.6,3466.4,0.78418]
[1735833110119,0.28877,3466.5,3466.4,0.78418]
[1735833110320,0.28877,3466.6,3466.5,0.28877]
[1735833111117,0.28875,3466.8,3466.7,0.28875]
[1735833111313,3.2078,3467.2,3466.4,6.15266691]
[1735833111517,0.28875,3466.9,3466.8,0.28874]
[1735833112424,0.28872,3467.3,3467.2,0.28871]
[1735833112622,0.28872,3467.2,3467.1,0.28872]
[1735833113221,0.28871,3467.4,3467.3,0.28871]
[1735833113421,0.9084,3467.5,3467.4,0.2887]
[1735833113721,0.28868,3467.6,3467.1,0.72182]
[1735833114027,0.28869,3467.5,3467.4,0.28869]
[1735833114329,0.72174,3467.5,3466.8,0.4692]
[1735833114524,0.28874,3466.9,3466.8,0.4692]
[1735833115718,0.28874,3466.9,3466.8,0.75795]
[1735833115918,0.28874,3466.9,3466.8,0.4692]
[1735833116118,0.28874,3466.9,3466.8,0.75795]
[1735833116325,0.28874,3467.0,3466.8,0.4692]
[1735833116620,0.28874,3467.0,3466.9,0.28874]
[1735833117327,0.28874,3466.9,3466.8,0.75794]
[1735833118322,0.9387,3467.1,3466.4,6.15266691]
[1735833118531,0.28877,3466.7,3466.6,0.28876]
[1735833118724,0.9387,3467.1,3466.4,6.15266691]
[1735833118917,0.9387,3467.1,3466.4,6.87462691]
[1735833119121,0.28875,3466.9,3466.8,0.28874]
[1735833119325,0.9387,3467.1,3466.4,6.15266691]
[1735833119523,0.28876,3466.8,3466.7,0.28875]
[1735833119728,0.9387,3467.1,3466.4,6.15266691]
[1735833119930,0.28877,3466.7,3466.6,0.28876]
[1735833120132,3.2078,3466.8,3466.4,2.94486691]
[1735833120329,0.72192,3466.6,3466.0,3.2078]
[1735833120524,0.28881,3466.1,3466.0,3.2078]
[1735833120723,0.28881,3466.1,3466.0,3.49662]
[1735833121728,3.2078,3466.3,3465.8,6.71784941]
[1735833121929,0.28882,3465.9,3465.8,6.71784941]
[1735833122131,0.28885,3465.6,3465.5,3.2078]
[1735833122929,0.28885,3465.6,3465.5,3.49666]
[1735833123328,0.28885,3465.6,3465.5,3.2078]
[1735833125029,0.72197,3466.4,3465.5,3.2078]
[1735833125222,0.28881,3466.1,3466.0,0.28881]
[1735833125426,0.28881,3466.1,3465.6,3.39436691]
[1735833125427,4.32752436,3466.7,3465.6,0.9449]
[1735833125627,0.2888,3466.2,3466.1,0.2888]
[1735833125926,0.2888,3466.2,3465.7,2.90546691]
[1735833125927,4.32752436,3466.7,3465.8,0.72209]
[1735833126131,4.13808436,3466.7,3466.6,0.28877]
[1735833126536,3.67758436,3466.7,3466.6,0.28877]